[Event "Titled Tuesday Blitz June 6 Early 2023"]
[White "Herman, Daniel"]
[Black "ZeGood_ZeBad_ZeUgly"]
[WhiteFideId "30935008"]
[WhiteElo "1897"]
[BlackElo "2213"]
[Result "1/2-1/2"]
[Round "4"]
[TimeControl "180+2"]
[Date "2023.06.06"]
[WhiteClock "0:00:07"]
[BlackClock "0:00:06"]
[Board "166"]

1. d4 {[%clk 0:03:00]}  Nf6 {[%clk 0:02:54]} 2. c4 {[%clk 0:03:00]}  g6 {[%clk 0:02:50]} 3. Nc3 {[%clk 0:02:59]}  d6 {[%clk 0:02:47]} 4. e4 {[%clk 0:02:55]}  Bg7 {[%clk 0:02:46]} 5. h3 {[%clk 0:02:54]}  O-O {[%clk 0:02:43]} 6. g4 {[%clk 0:02:52]}  e5 {[%clk 0:02:43]} 7. d5 {[%clk 0:02:50]}  c5 {[%clk 0:02:38]} 8. Nge2 {[%clk 0:02:37]}  b5 {[%clk 0:02:20]} 9. cxb5 {[%clk 0:02:36]}  a6 {[%clk 0:02:19]} 10. bxa6 {[%clk 0:02:35]}  Bxa6 {[%clk 0:02:18]} 11. Ng3 {[%clk 0:02:19]}  Qb6 {[%clk 0:02:02]} 12. Bxa6 {[%clk 0:02:13]}  Nxa6 {[%clk 0:02:03]} 13. O-O {[%clk 0:02:10]}  Rfb8 {[%clk 0:01:54]} 14. b3 {[%clk 0:02:05]}  Nb4 {[%clk 0:01:40]} 15. Be3 {[%clk 0:02:01]}  Ra5 {[%clk 0:01:26]} 16. a4 {[%clk 0:01:54]}  Na6 {[%clk 0:01:21]} 17. Nb5 {[%clk 0:01:54]}  Ne8 {[%clk 0:01:02]} 18. Bd2 {[%clk 0:01:46]}  Nb4 {[%clk 0:01:02]} 19. Bxb4 {[%clk 0:01:45]}  cxb4 {[%clk 0:01:03]} 20. Rc1 {[%clk 0:01:45]}  Qb7 {[%clk 0:00:30]} 21. Rc6 {[%clk 0:01:40]}  Ra6 {[%clk 0:00:30]} 22. Qc2 {[%clk 0:01:33]}  Rxc6 {[%clk 0:00:25]} 23. Qxc6 {[%clk 0:01:34]}  Qxc6 {[%clk 0:00:19]} 24. dxc6 {[%clk 0:01:35]}  Bh6 {[%clk 0:00:19]} 25. Rd1 {[%clk 0:01:06]}  Rc8 {[%clk 0:00:18]} 26. c7 {[%clk 0:01:07]}  Kf8 {[%clk 0:00:12]} 27. Nxd6 {[%clk 0:00:33]}  Nxd6 {[%clk 0:00:07]} 28. Rxd6 {[%clk 0:00:34]}  Rxc7 {[%clk 0:00:07]} 29. Rb6 {[%clk 0:00:33]}  Bd2 {[%clk 0:00:08]} 30. a5 {[%clk 0:00:30]}  Rc1+ {[%clk 0:00:03]} 31. Kg2 {[%clk 0:00:30]}  Ra1 {[%clk 0:00:04]} 32. a6 {[%clk 0:00:27]}  Bc3 {[%clk 0:00:03]} 33. Rb8+ {[%clk 0:00:23]}  Kg7 {[%clk 0:00:02]} 34. Ra8 {[%clk 0:00:21]}  Bd4 {[%clk 0:00:02]} 35. h4 {[%clk 0:00:13]}  Ra2 {[%clk 0:00:02]} 36. Nh1 {[%clk 0:00:13]}  Rb2 {[%clk 0:00:01]} 37. Kh3 {[%clk 0:00:10]}  Rxb3+ {[%clk 0:00:01]} 38. Ng3 {[%clk 0:00:10]}  Ra3 {[%clk 0:00:02]} 39. Kg2 {[%clk 0:00:06]}  Ra2 {[%clk 0:00:03]} 40. Nh1 {[%clk 0:00:05]}  b3 {[%clk 0:00:04]} 41. Rb8 {[%clk 0:00:05]}  b2 {[%clk 0:00:02]} 42. Ng3 {[%clk 0:00:04]}  Rxa6 {[%clk 0:00:02]} 43. Ne2 {[%clk 0:00:04]}  Ra2 {[%clk 0:00:02]} 44. Nxd4 {[%clk 0:00:04]}  exd4 {[%clk 0:00:03]} 45. Kf3 {[%clk 0:00:04]}  Ra3+ {[%clk 0:00:03]} 46. Ke2 {[%clk 0:00:04]}  Ra2 {[%clk 0:00:02]} 47. Kd3 {[%clk 0:00:05]}  b1=Q+ {[%clk 0:00:01]} 48. Rxb1 {[%clk 0:00:04]}  Rxf2 {[%clk 0:00:02]} 49. Kxd4 {[%clk 0:00:04]}  Rh2 {[%clk 0:00:03]} 50. Rb7 {[%clk 0:00:03]}  Rxh4 {[%clk 0:00:02]} 51. g5 {[%clk 0:00:04]}  Rg4 {[%clk 0:00:02]} 52. Kd5 {[%clk 0:00:04]}  Rxg5+ {[%clk 0:00:02]} 53. e5 {[%clk 0:00:04]}  Kh6 {[%clk 0:00:01]} 54. Rxf7 {[%clk 0:00:04]}  Rg1 {[%clk 0:00:02]} 55. Rf2 {[%clk 0:00:04]}  Rd1+ {[%clk 0:00:03]} 56. Ke6 {[%clk 0:00:04]}  Kg7 {[%clk 0:00:04]} 57. Ke7 {[%clk 0:00:04]}  h5 {[%clk 0:00:05]} 58. e6 {[%clk 0:00:05]}  h4 {[%clk 0:00:05]} 59. Ke8 {[%clk 0:00:05]}  g5 {[%clk 0:00:05]} 60. e7 {[%clk 0:00:06]}  g4 {[%clk 0:00:06]} 61. Rf4 {[%clk 0:00:06]}  g3 {[%clk 0:00:06]} 62. Rxh4 {[%clk 0:00:06]}  Kf6 {[%clk 0:00:06]} 63. Rf4+ {[%clk 0:00:06]}  Kg5 {[%clk 0:00:05]} 64. Rf8 {[%clk 0:00:06]}  Re1 {[%clk 0:00:06]} 65. Rg8+ {[%clk 0:00:06]}  Kh4 {[%clk 0:00:06]} 66. Kf7 {[%clk 0:00:06]}  Rxe7+ {[%clk 0:00:05]} 67. Kxe7 {[%clk 0:00:06]}  Kh3 {[%clk 0:00:06]} 68. Kf6 {[%clk 0:00:07]}  g2 {[%clk 0:00:07]} 69. Kf5 {[%clk 0:00:07]}  Kh2 {[%clk 0:00:07]} 70. Kf4 {[%clk 0:00:06]}  g1=Q {[%clk 0:00:06]} 71. Rxg1 {[%clk 0:00:07]}  Kxg1 {[%clk 0:00:06]} 1/2-1/2


[Site "https://www.chess.com"]

[Event "Titled Tuesday Blitz June 6 Early 2023"]
[White "Buchenau, Frank"]
[Black "Araujo Filho, Luiz Antonio Coel"]
[WhiteFideId "4604350"]
[BlackFideId "2130661"]
[WhiteElo "2157"]
[BlackElo "2056"]
[Result "1-0"]
[Round "4"]
[TimeControl "180+2"]
[Date "2023.06.06"]
[WhiteClock "0:00:55"]
[BlackClock "0:00:03"]
[Board "168"]

1. e4 {[%clk 0:02:59]}  c6 {[%clk 0:02:59]} 2. Nf3 {[%clk 0:02:58]}  d5 {[%clk 0:03:00]} 3. Nc3 {[%clk 0:02:59]}  dxe4 {[%clk 0:03:00]} 4. Nxe4 {[%clk 0:02:59]}  Nf6 {[%clk 0:03:01]} 5. Nxf6+ {[%clk 0:02:54]}  exf6 {[%clk 0:03:02]} 6. d4 {[%clk 0:02:53]}  Bd6 {[%clk 0:03:01]} 7. Be2 {[%clk 0:02:51]}  O-O {[%clk 0:03:01]} 8. O-O {[%clk 0:02:51]}  Re8 {[%clk 0:03:02]} 9. c4 {[%clk 0:02:49]}  Nd7 {[%clk 0:03:02]} 10. Bd2 {[%clk 0:02:46]}  Nf8 {[%clk 0:03:02]} 11. Bc3 {[%clk 0:02:44]}  b6 {[%clk 0:02:57]} 12. Re1 {[%clk 0:02:39]}  Qc7 {[%clk 0:02:50]} 13. b4 {[%clk 0:02:32]}  Ng6 {[%clk 0:02:42]} 14. c5 {[%clk 0:02:30]}  Bf8 {[%clk 0:02:31]} 15. g3 {[%clk 0:02:27]}  Be6 {[%clk 0:02:23]} 16. a4 {[%clk 0:02:25]}  Bd5 {[%clk 0:02:21]} 17. Nd2 {[%clk 0:02:20]}  bxc5 {[%clk 0:02:10]} 18. dxc5 {[%clk 0:02:17]}  Ne5 {[%clk 0:02:09]} 19. Qc2 {[%clk 0:02:09]}  Qd7 {[%clk 0:01:56]} 20. Rad1 {[%clk 0:01:56]}  Qh3 {[%clk 0:01:53]} 21. Bf1 {[%clk 0:01:56]}  Qh5 {[%clk 0:01:49]} 22. Bg2 {[%clk 0:01:40]}  Rad8 {[%clk 0:00:40]} 23. h3 {[%clk 0:01:36]}  Be6 {[%clk 0:00:37]} 24. f4 {[%clk 0:01:34]}  Nd3 {[%clk 0:00:27]} 25. Re3 {[%clk 0:01:28]}  Nxc5 {[%clk 0:00:18]} 26. g4 {[%clk 0:01:16]}  Bxg4 {[%clk 0:00:16]} 27. hxg4 {[%clk 0:01:14]}  Qxg4 {[%clk 0:00:16]} 28. Rde1 {[%clk 0:01:05]}  Rxe3 {[%clk 0:00:15]} 29. Rxe3 {[%clk 0:01:06]}  Ne6 {[%clk 0:00:11]} 30. Qe4 {[%clk 0:01:05]}  Nxf4 {[%clk 0:00:07]} 31. Qf3 {[%clk 0:01:01]}  Qxf3 {[%clk 0:00:03]} 32. Bxf3 {[%clk 0:00:59]}  Nd5 {[%clk 0:00:03]} 33. Rd3 {[%clk 0:00:55]} 1-0


[Site "https://www.chess.com"]

[Event "Titled Tuesday Blitz June 6 Early 2023"]
[White "Zallio, Luciano de Souza"]
[Black "Bochnicka, Vladimir"]
[WhiteFideId "2109700"]
[BlackFideId "14943450"]
[WhiteElo "2057"]
[BlackElo "2094"]
[Result "0-1"]
[Round "4"]
[TimeControl "180+2"]
[Date "2023.06.06"]
[WhiteClock "0:00:42"]
[BlackClock "0:00:18"]
[Board "170"]

1. c4 {[%clk 0:03:00]}  Nf6 {[%clk 0:02:59]} 2. g3 {[%clk 0:02:59]}  c5 {[%clk 0:02:59]} 3. Bg2 {[%clk 0:02:58]}  g6 {[%clk 0:03:00]} 4. Nc3 {[%clk 0:02:59]}  Bg7 {[%clk 0:03:01]} 5. e3 {[%clk 0:02:59]}  Nc6 {[%clk 0:03:00]} 6. Nge2 {[%clk 0:02:59]}  d6 {[%clk 0:03:01]} 7. d4 {[%clk 0:02:59]}  Bd7 {[%clk 0:03:00]} 8. O-O {[%clk 0:02:58]}  Qc8 {[%clk 0:02:58]} 9. Re1 {[%clk 0:02:55]}  h5 {[%clk 0:02:58]} 10. h4 {[%clk 0:02:52]}  O-O {[%clk 0:02:57]} 11. a3 {[%clk 0:02:50]}  cxd4 {[%clk 0:02:43]} 12. exd4 {[%clk 0:02:50]}  Na5 {[%clk 0:02:44]} 13. b3 {[%clk 0:02:42]}  Rb8 {[%clk 0:02:41]} 14. Bd2 {[%clk 0:02:32]}  Nc6 {[%clk 0:02:26]} 15. Rc1 {[%clk 0:02:21]}  Ng4 {[%clk 0:02:26]} 16. Be3 {[%clk 0:01:42]}  Nxe3 {[%clk 0:02:22]} 17. fxe3 {[%clk 0:01:43]}  Bg4 {[%clk 0:02:16]} 18. Qc2 {[%clk 0:01:36]}  e5 {[%clk 0:02:08]} 19. d5 {[%clk 0:01:35]}  Ne7 {[%clk 0:02:05]} 20. Ne4 {[%clk 0:01:35]}  Qd7 {[%clk 0:01:50]} 21. Qd3 {[%clk 0:01:35]}  b6 {[%clk 0:01:46]} 22. b4 {[%clk 0:01:35]}  a5 {[%clk 0:01:12]} 23. Rf1 {[%clk 0:01:34]}  axb4 {[%clk 0:01:09]} 24. axb4 {[%clk 0:01:35]}  b5 {[%clk 0:01:03]} 25. c5 {[%clk 0:01:24]}  Nxd5 {[%clk 0:00:52]} 26. Qxd5 {[%clk 0:01:21]}  Bxe2 {[%clk 0:00:51]} 27. Rf6 {[%clk 0:01:18]}  Bc4 {[%clk 0:00:47]} 28. Qxd6 {[%clk 0:01:15]}  Qa7 {[%clk 0:00:39]} 29. Qxe5 {[%clk 0:01:13]}  Rbe8 {[%clk 0:00:34]} 30. Qf4 {[%clk 0:01:09]}  Qa3 {[%clk 0:00:28]} 31. Rf1 {[%clk 0:01:04]}  Bxf1 {[%clk 0:00:25]} 32. Qxf1 {[%clk 0:00:56]}  Rxe4 {[%clk 0:00:19]} 33. Bxe4 {[%clk 0:00:52]}  Bxf6 {[%clk 0:00:20]} 34. Qxf6 {[%clk 0:00:46]}  Qxe3+ {[%clk 0:00:20]} 35. Qf2 {[%clk 0:00:46]}  Qxe4 {[%clk 0:00:20]} 36. Kh2 {[%clk 0:00:44]}  Qxb4 {[%clk 0:00:20]} 37. c6 {[%clk 0:00:43]}  Qc4 {[%clk 0:00:20]} 38. Qb6 {[%clk 0:00:42]}  b4 {[%clk 0:00:21]} 39. c7 {[%clk 0:00:43]}  b3 {[%clk 0:00:21]} 40. Qb8 {[%clk 0:00:43]}  Qc2+ {[%clk 0:00:19]} 41. Kh3 {[%clk 0:00:42]}  b2 {[%clk 0:00:18]} 0-1


[Site "https://www.chess.com"]

[Event "Titled Tuesday Blitz June 6 Early 2023"]
[White "Joubert, Dantelle"]
[Black "Toktomushev, Teimur"]
[WhiteFideId "14310813"]
[BlackFideId "14176726"]
[WhiteElo "1507"]
[BlackElo "2116"]
[Result "0-1"]
[Round "4"]
[TimeControl "180+2"]
[Date "2023.06.06"]
[WhiteClock "0:00:05"]
[BlackClock "0:00:03"]
[Board "173"]

1. e4 {[%clk 0:02:59]}  c5 {[%clk 0:02:59]} 2. Nf3 {[%clk 0:02:58]}  e6 {[%clk 0:02:59]} 3. d4 {[%clk 0:02:57]}  cxd4 {[%clk 0:03:00]} 4. Nxd4 {[%clk 0:02:58]}  a6 {[%clk 0:03:01]} 5. Bd3 {[%clk 0:02:56]}  Bc5 {[%clk 0:03:00]} 6. Nb3 {[%clk 0:02:52]}  Ba7 {[%clk 0:03:00]} 7. O-O {[%clk 0:02:51]}  Ne7 {[%clk 0:03:01]} 8. c4 {[%clk 0:02:47]}  O-O {[%clk 0:03:00]} 9. Nc3 {[%clk 0:02:46]}  Nbc6 {[%clk 0:02:45]} 10. Qe2 {[%clk 0:02:40]}  Re8 {[%clk 0:02:13]} 11. Bg5 {[%clk 0:02:31]}  Qc7 {[%clk 0:02:07]} 12. Kh1 {[%clk 0:02:26]}  Ng6 {[%clk 0:01:46]} 13. Nd2 {[%clk 0:02:08]}  h6 {[%clk 0:01:30]} 14. Be3 {[%clk 0:02:06]}  Nf4 {[%clk 0:01:26]} 15. Bxf4 {[%clk 0:02:01]}  Qxf4 {[%clk 0:01:27]} 16. g3 {[%clk 0:01:47]}  Qc7 {[%clk 0:01:13]} 17. f4 {[%clk 0:01:28]}  Bd4 {[%clk 0:01:03]} 18. Nf3 {[%clk 0:01:24]}  Bxc3 {[%clk 0:01:02]} 19. bxc3 {[%clk 0:01:23]}  b6 {[%clk 0:00:53]} 20. Kg1 {[%clk 0:01:01]}  Bb7 {[%clk 0:00:47]} 21. Rab1 {[%clk 0:01:00]}  Rab8 {[%clk 0:00:44]} 22. Qe3 {[%clk 0:00:48]}  Ba8 {[%clk 0:00:41]} 23. Rb2 {[%clk 0:00:45]}  d5 {[%clk 0:00:12]} 24. cxd5 {[%clk 0:00:39]}  exd5 {[%clk 0:00:13]} 25. e5 {[%clk 0:00:39]}  Na5 {[%clk 0:00:12]} 26. Rfb1 {[%clk 0:00:33]}  b5 {[%clk 0:00:06]} 27. Nd4 {[%clk 0:00:22]}  Rbc8 {[%clk 0:00:04]} 28. Rc2 {[%clk 0:00:16]}  Nc4 {[%clk 0:00:04]} 29. Qf3 {[%clk 0:00:12]}  Qa7 {[%clk 0:00:04]} 30. Qg4 {[%clk 0:00:10]}  Kh8 {[%clk 0:00:03]} 31. Qf5 {[%clk 0:00:09]}  g6 {[%clk 0:00:02]} 32. Qf6+ {[%clk 0:00:08]}  Kg8 {[%clk 0:00:03]} 33. f5 {[%clk 0:00:07]}  Nxe5 {[%clk 0:00:03]} 34. fxg6 {[%clk 0:00:05]}  Nxd3 {[%clk 0:00:03]} 0-1


[Site "https://www.chess.com"]

[Event "Titled Tuesday Blitz June 6 Early 2023"]
[White "Szyszylo, Rafal"]
[Black "Butolo, Alexandru-Mircea"]
[WhiteFideId "1109626"]
[BlackFideId "1261649"]
[WhiteElo "1951"]
[BlackElo "1850"]
[Result "1/2-1/2"]
[Round "4"]
[TimeControl "180+2"]
[Date "2023.06.06"]
[WhiteClock "0:00:10"]
[BlackClock "0:00:06"]
[Board "174"]

1. e4 {[%clk 0:02:57]}  c5 {[%clk 0:02:59]} 2. Nc3 {[%clk 0:02:56]}  a6 {[%clk 0:02:57]} 3. g3 {[%clk 0:02:55]}  b5 {[%clk 0:02:56]} 4. Bg2 {[%clk 0:02:50]}  Bb7 {[%clk 0:02:56]} 5. d3 {[%clk 0:02:50]}  e6 {[%clk 0:02:56]} 6. f4 {[%clk 0:02:50]}  Be7 {[%clk 0:02:55]} 7. Qg4 {[%clk 0:02:37]}  Nf6 {[%clk 0:02:29]} 8. Qxg7 {[%clk 0:02:23]}  Rg8 {[%clk 0:02:26]} 9. Qh6 {[%clk 0:02:23]}  Rg6 {[%clk 0:02:23]} 10. Qh3 {[%clk 0:02:24]}  h5 {[%clk 0:01:50]} 11. Nf3 {[%clk 0:02:12]}  Nc6 {[%clk 0:01:44]} 12. Ne5 {[%clk 0:02:06]}  Qc7 {[%clk 0:01:34]} 13. Nxg6 {[%clk 0:02:05]}  fxg6 {[%clk 0:01:33]} 14. Be3 {[%clk 0:01:38]}  Nd4 {[%clk 0:01:28]} 15. O-O-O {[%clk 0:01:22]}  Ng4 {[%clk 0:01:27]} 16. Bg1 {[%clk 0:01:18]}  b4 {[%clk 0:01:06]} 17. Na4 {[%clk 0:00:59]}  Bc6 {[%clk 0:01:01]} 18. b3 {[%clk 0:00:59]}  Bxa4 {[%clk 0:01:00]} 19. bxa4 {[%clk 0:00:59]}  Qa5 {[%clk 0:00:58]} 20. Bxd4 {[%clk 0:00:46]}  cxd4 {[%clk 0:00:56]} 21. Bf3 {[%clk 0:00:46]}  Ne3 {[%clk 0:00:44]} 22. Kd2 {[%clk 0:00:40]}  b3+ {[%clk 0:00:42]} 23. Ke2 {[%clk 0:00:40]}  bxc2 {[%clk 0:00:41]} 24. Rc1 {[%clk 0:00:38]}  Ba3 {[%clk 0:00:35]} 25. e5 {[%clk 0:00:37]}  Bxc1 {[%clk 0:00:33]} 26. Rxc1 {[%clk 0:00:34]}  Rb8 {[%clk 0:00:28]} 27. Qh4 {[%clk 0:00:09]}  Rb1 {[%clk 0:00:05]} 28. Qf6 {[%clk 0:00:09]}  Rxc1 {[%clk 0:00:05]} 29. Qh8+ {[%clk 0:00:09]}  Ke7 {[%clk 0:00:05]} 30. Qf6+ {[%clk 0:00:09]}  Ke8 {[%clk 0:00:05]} 31. Qh8+ {[%clk 0:00:10]}  Ke7 {[%clk 0:00:06]} 32. Qf6+ {[%clk 0:00:10]}  Ke8 {[%clk 0:00:06]} 1/2-1/2


[Site "https://www.chess.com"]

[Event "Titled Tuesday Blitz June 6 Early 2023"]
[White "Do Nascimento,Christian Almeida"]
[Black "Yanayt, Eugene"]
[WhiteFideId "2143801"]
[BlackFideId "2020165"]
[WhiteElo "2078"]
[BlackElo "2083"]
[Result "1/2-1/2"]
[Round "4"]
[TimeControl "180+2"]
[Date "2023.06.06"]
[WhiteClock "0:00:17"]
[BlackClock "0:00:14"]
[Board "178"]

1. e4 {[%clk 0:02:54]}  c5 {[%clk 0:02:57]} 2. Nf3 {[%clk 0:02:53]}  Nc6 {[%clk 0:02:54]} 3. d4 {[%clk 0:02:51]}  cxd4 {[%clk 0:02:54]} 4. Nxd4 {[%clk 0:02:51]}  g6 {[%clk 0:02:55]} 5. Be3 {[%clk 0:02:50]}  Bg7 {[%clk 0:02:55]} 6. Nc3 {[%clk 0:02:50]}  Nf6 {[%clk 0:02:54]} 7. Bc4 {[%clk 0:02:50]}  O-O {[%clk 0:02:54]} 8. Bb3 {[%clk 0:02:47]}  d6 {[%clk 0:02:51]} 9. f3 {[%clk 0:02:46]}  Nxd4 {[%clk 0:02:49]} 10. Bxd4 {[%clk 0:02:45]}  Bd7 {[%clk 0:02:49]} 11. Qd2 {[%clk 0:02:43]}  b5 {[%clk 0:02:49]} 12. h4 {[%clk 0:02:42]}  Nh5 {[%clk 0:02:48]} 13. Bxg7 {[%clk 0:02:40]}  Kxg7 {[%clk 0:02:49]} 14. g4 {[%clk 0:02:35]}  Nf6 {[%clk 0:02:45]} 15. h5 {[%clk 0:02:27]}  Rh8 {[%clk 0:02:44]} 16. O-O-O {[%clk 0:02:27]}  a5 {[%clk 0:02:40]} 17. e5 {[%clk 0:02:17]}  Nxg4 {[%clk 0:01:56]} 18. fxg4 {[%clk 0:02:14]}  Bxg4 {[%clk 0:01:56]} 19. Rdg1 {[%clk 0:02:14]}  Bf5 {[%clk 0:01:55]} 20. Bd5 {[%clk 0:02:09]}  Rb8 {[%clk 0:01:48]} 21. Be4 {[%clk 0:01:58]}  Bxe4 {[%clk 0:01:44]} 22. Nxe4 {[%clk 0:01:57]}  dxe5 {[%clk 0:01:44]} 23. h6+ {[%clk 0:01:49]}  Kf8 {[%clk 0:01:40]} 24. Rd1 {[%clk 0:01:33]}  Qxd2+ {[%clk 0:01:22]} 25. Rxd2 {[%clk 0:01:34]}  f6 {[%clk 0:01:22]} 26. Rd7 {[%clk 0:01:30]}  Kf7 {[%clk 0:01:19]} 27. Rf1 {[%clk 0:01:27]}  Ke6 {[%clk 0:01:04]} 28. Ra7 {[%clk 0:01:18]}  Rhd8 {[%clk 0:00:53]} 29. Nc5+ {[%clk 0:01:07]}  Kf7 {[%clk 0:00:52]} 30. Rxa5 {[%clk 0:01:00]}  Rd4 {[%clk 0:00:50]} 31. Rd1 {[%clk 0:00:40]}  g5 {[%clk 0:00:48]} 32. Rxd4 {[%clk 0:00:39]}  exd4 {[%clk 0:00:48]} 33. Ra7 {[%clk 0:00:32]}  Rd8 {[%clk 0:00:26]} 34. Kd2 {[%clk 0:00:30]}  Rd5 {[%clk 0:00:20]} 35. Ne4 {[%clk 0:00:29]}  g4 {[%clk 0:00:17]} 36. Ra3 {[%clk 0:00:14]}  f5 {[%clk 0:00:17]} 37. Ng5+ {[%clk 0:00:09]}  Kg6 {[%clk 0:00:17]} 38. Ne6 {[%clk 0:00:10]}  Re5 {[%clk 0:00:16]} 39. Nf4+ {[%clk 0:00:09]}  Kxh6 {[%clk 0:00:13]} 40. Ra7 {[%clk 0:00:07]}  Re4 {[%clk 0:00:12]} 41. Ne2 {[%clk 0:00:06]}  f4 {[%clk 0:00:11]} 42. Rd7 {[%clk 0:00:04]}  f3 {[%clk 0:00:09]} 43. Ng3 {[%clk 0:00:04]}  Rf4 {[%clk 0:00:10]} 44. Ke1 {[%clk 0:00:03]}  Kg5 {[%clk 0:00:09]} 45. Kf2 {[%clk 0:00:04]}  e5 {[%clk 0:00:09]} 46. Rg7+ {[%clk 0:00:04]}  Kh6 {[%clk 0:00:09]} 47. Re7 {[%clk 0:00:03]}  Kg6 {[%clk 0:00:05]} 48. Rxe5 {[%clk 0:00:03]}  h5 {[%clk 0:00:05]} 49. Rxh5 {[%clk 0:00:03]}  Rf6 {[%clk 0:00:05]} 50. Rxb5 {[%clk 0:00:03]}  Rc6 {[%clk 0:00:05]} 51. c3 {[%clk 0:00:02]}  dxc3 {[%clk 0:00:05]} 52. bxc3 {[%clk 0:00:02]}  Rxc3 {[%clk 0:00:05]} 53. Rb2 {[%clk 0:00:03]}  Ra3 {[%clk 0:00:06]} 54. Rc2 {[%clk 0:00:04]}  Kg5 {[%clk 0:00:05]} 55. Rb2 {[%clk 0:00:04]}  Kf4 {[%clk 0:00:06]} 56. Nf1 {[%clk 0:00:05]}  Ke4 {[%clk 0:00:06]} 57. Rb4+ {[%clk 0:00:05]}  Kd3 {[%clk 0:00:06]} 58. Rb2 {[%clk 0:00:05]}  Ke4 {[%clk 0:00:06]} 59. Rb4+ {[%clk 0:00:06]}  Kd3 {[%clk 0:00:07]} 60. Rxg4 {[%clk 0:00:06]}  Rxa2+ {[%clk 0:00:06]} 61. Kxf3 {[%clk 0:00:07]}  Ra1 {[%clk 0:00:07]} 62. Ng3 {[%clk 0:00:07]}  Ra8 {[%clk 0:00:07]} 63. Rg7 {[%clk 0:00:07]}  Rf8+ {[%clk 0:00:07]} 64. Kg2 {[%clk 0:00:08]}  Ke3 {[%clk 0:00:07]} 65. Re7+ {[%clk 0:00:08]}  Kf4 {[%clk 0:00:08]} 66. Re2 {[%clk 0:00:08]}  Rg8 {[%clk 0:00:08]} 67. Rf2+ {[%clk 0:00:08]}  Ke3 {[%clk 0:00:08]} 68. Rf3+ {[%clk 0:00:08]}  Kd2 {[%clk 0:00:08]} 69. Kf2 {[%clk 0:00:09]}  Kd1 {[%clk 0:00:08]} 70. Ne4 {[%clk 0:00:10]}  Kc2 {[%clk 0:00:08]} 71. Rc3+ {[%clk 0:00:09]}  Kb2 {[%clk 0:00:09]} 72. Rf3 {[%clk 0:00:10]}  Re8 {[%clk 0:00:09]} 73. Re3 {[%clk 0:00:10]}  Kc2 {[%clk 0:00:09]} 74. Ke2 {[%clk 0:00:10]}  Rd8 {[%clk 0:00:10]} 75. Rc3+ {[%clk 0:00:11]}  Kb2 {[%clk 0:00:10]} 76. Re3 {[%clk 0:00:11]}  Rc8 {[%clk 0:00:10]} 77. Nf2 {[%clk 0:00:12]}  Rc2+ {[%clk 0:00:10]} 78. Ke1 {[%clk 0:00:12]}  Rc1+ {[%clk 0:00:10]} 79. Nd1+ {[%clk 0:00:13]}  Kc2 {[%clk 0:00:11]} 80. Rc3+ {[%clk 0:00:13]}  Kb1 {[%clk 0:00:10]} 81. Rb3+ {[%clk 0:00:14]}  Kc2 {[%clk 0:00:11]} 82. Rb2+ {[%clk 0:00:15]}  Kd3 {[%clk 0:00:11]} 83. Rd2+ {[%clk 0:00:15]}  Ke4 {[%clk 0:00:11]} 84. Ke2 {[%clk 0:00:16]}  Rc4 {[%clk 0:00:11]} 85. Nf2+ {[%clk 0:00:17]}  Kf4 {[%clk 0:00:11]} 86. Nd3+ {[%clk 0:00:18]}  Ke4 {[%clk 0:00:11]} 87. Rd1 {[%clk 0:00:19]}  Rc2+ {[%clk 0:00:11]} 88. Ke1 {[%clk 0:00:19]}  Ke3 {[%clk 0:00:12]} 89. Kf1 {[%clk 0:00:18]}  Re2 {[%clk 0:00:12]} 90. Ne1 {[%clk 0:00:17]}  Rf2+ {[%clk 0:00:11]} 91. Kg1 {[%clk 0:00:17]}  Ke2 {[%clk 0:00:12]} 92. Ra1 {[%clk 0:00:17]}  Rf1+ {[%clk 0:00:12]} 93. Kg2 {[%clk 0:00:17]}  Rxe1 {[%clk 0:00:13]} 94. Ra2+ {[%clk 0:00:17]}  Kd1 {[%clk 0:00:13]} 95. Ra1+ {[%clk 0:00:17]}  Ke2 {[%clk 0:00:13]} 96. Rxe1+ {[%clk 0:00:17]}  Kxe1 {[%clk 0:00:14]} 1/2-1/2


[Site "https://www.chess.com"]

[Event "Titled Tuesday Blitz June 6 Early 2023"]
[White "Toczek, Grzegorz"]
[Black "Chuemsakul, Sarocha"]
[WhiteFideId "1106457"]
[BlackFideId "6203710"]
[WhiteElo "2093"]
[BlackElo "1686"]
[Result "0-1"]
[Round "4"]
[TimeControl "180+2"]
[Date "2023.06.06"]
[WhiteClock "0:00:03"]
[BlackClock "0:00:02"]
[Board "179"]

1. d4 {[%clk 0:03:00]}  Nf6 {[%clk 0:02:59]} 2. Nf3 {[%clk 0:02:59]}  g6 {[%clk 0:02:56]} 3. g3 {[%clk 0:02:59]}  Bg7 {[%clk 0:02:56]} 4. Bg2 {[%clk 0:03:00]}  d6 {[%clk 0:02:57]} 5. O-O {[%clk 0:03:01]}  O-O {[%clk 0:02:57]} 6. b3 {[%clk 0:02:56]}  Nfd7 {[%clk 0:02:47]} 7. Bb2 {[%clk 0:02:55]}  c5 {[%clk 0:02:47]} 8. e3 {[%clk 0:02:56]}  Nc6 {[%clk 0:02:46]} 9. c4 {[%clk 0:02:53]}  Rb8 {[%clk 0:02:41]} 10. Nc3 {[%clk 0:02:53]}  a6 {[%clk 0:02:34]} 11. Rc1 {[%clk 0:02:49]}  cxd4 {[%clk 0:02:26]} 12. Nxd4 {[%clk 0:02:47]}  Nxd4 {[%clk 0:02:26]} 13. exd4 {[%clk 0:02:48]}  b5 {[%clk 0:02:26]} 14. cxb5 {[%clk 0:02:19]}  axb5 {[%clk 0:02:27]} 15. Qe2 {[%clk 0:02:16]}  b4 {[%clk 0:02:11]} 16. Nd5 {[%clk 0:02:12]}  e6 {[%clk 0:02:08]} 17. Ne3 {[%clk 0:02:10]}  d5 {[%clk 0:01:46]} 18. h4 {[%clk 0:02:08]}  h5 {[%clk 0:01:42]} 19. Bf3 {[%clk 0:02:00]}  Qb6 {[%clk 0:01:42]} 20. Rfd1 {[%clk 0:01:59]}  Ba6 {[%clk 0:01:38]} 21. Qd2 {[%clk 0:01:54]}  Rfc8 {[%clk 0:01:38]} 22. Ng2 {[%clk 0:01:35]}  Qa5 {[%clk 0:01:22]} 23. a4 {[%clk 0:01:32]}  Nb6 {[%clk 0:01:11]} 24. Nf4 {[%clk 0:01:29]}  Nc4 {[%clk 0:01:05]} 25. bxc4 {[%clk 0:01:26]}  dxc4 {[%clk 0:01:06]} 26. Qe3 {[%clk 0:00:39]}  c3 {[%clk 0:01:04]} 27. Ba1 {[%clk 0:00:38]}  Bb7 {[%clk 0:00:36]} 28. Bxb7 {[%clk 0:00:33]}  Rxb7 {[%clk 0:00:36]} 29. Nd3 {[%clk 0:00:18]}  Rbc7 {[%clk 0:00:05]} 30. Ne5 {[%clk 0:00:09]}  Qxa4 {[%clk 0:00:03]} 31. Nxf7 {[%clk 0:00:06]}  Kxf7 {[%clk 0:00:01]} 32. d5 {[%clk 0:00:05]}  Re7 {[%clk 0:00:01]} 33. dxe6+ {[%clk 0:00:04]}  Rxe6 {[%clk 0:00:02]} 34. Qf3+ {[%clk 0:00:05]}  Rf6 {[%clk 0:00:02]} 35. Qb7+ {[%clk 0:00:04]}  Kg8 {[%clk 0:00:01]} 36. Qxc8+ {[%clk 0:00:04]}  Kh7 {[%clk 0:00:02]} 37. Rd7 {[%clk 0:00:03]}  Qa2 {[%clk 0:00:02]} 0-1


[Site "https://www.chess.com"]